Cogmind - Beta 17 @@@ ROGUE MODE // 2026.08.09 @ 21:59:53 Player: TaxEvasionist Result: Destroyed by MC-FS3(j) with Overtuned Pulse Rifle Performance ------------- Evolutions (0) 0 Regions Visited (4) 800 Robots Destroyed (24) 120 Value Destroyed (531) 531 Prototype IDs (2) 40 Alien Tech Used (0) 0 Bonus (0) 0 TOTAL SCORE: 1491 Bonus ------- None Cogmind --------- Core Integrity 0/250 Matter 266/300 Energy 200/200 System Corruption 7% Temperature Warm (186) Movement Rolling (100) Location -9/Recycling Parts ------- > --- POWER (1) -------- Subdweller Power Source > --- PROPULSION (2) --- Light Treads Compact Wheel > --- UTILITY (2) ------ Scrap Engine > --- WEAPON (2) ------- Grenade Launcher > --- INVENTORY (5) ---- Medium Storage Unit Scrap Shield Medium Laser Subdweller Machine Gun Peak State ------------ > --- POWER ------------ Subdweller Power Source > --- PROPULSION ------- Light Treads Compact Wheel > --- UTILITY ---------- Scrap Engine > --- WEAPON ----------- Particle Gun Subdweller Machine Gun > --- INVENTORY -------- Medium Storage Unit Scrap Shield Medium Laser Grenade Launcher [Rating: 26] Favorites ----------- Power Subdweller Power Source Engine Subdweller Power Source Propulsion Aluminum Leg Treads Light Treads Leg Aluminum Leg Wheel Compact Wheel Flight Unit VTOL Module Utility Improved Heat Sink Device Improved Heat Sink Storage Large Storage Unit Hackware Authchip [R/Combat] Weapon Light Assault Rifle Energy Gun Medium Laser Energy Cannon Light EM Pulse Cannon Ballistic Gun Light Assault Rifle Launcher Grenade Launcher Build | -11 -10 -10 -10 -9 ------- Run | Yrd Mat Min Sub Rec Slots Evolved . | . . . . . Power . | . . . . . Propulsion . | . . . . . Utility . | . . . . . Weapon . | . . . . . Parts Attached 34 | 6 4 9 4 11 Power 6 | 1 1 2 1 1 Engine 6 | 1 1 2 1 1 Core . | . . . . . Reactor . | . . . . . Propulsion 9 | 2 1 2 . 4 Treads 1 | . . . . 1 Leg 5 | 2 1 2 . . Wheel 2 | . . . . 2 Hover . | . . . . . Flight 1 | . . . . 1 Utility 9 | 1 1 2 1 4 Device 6 | . 1 2 . 3 Storage 2 | 1 . . 1 . Processor . | . . . . . Hackware 1 | . . . . 1 Protection . | . . . . . Artifact . | . . . . . Weapon 10 | 2 1 3 2 2 Energy Gun 2 | . . 1 1 . Energy Cannon 1 | . . . . 1 Ballistic Gun 6 | 2 1 2 1 . Ballistic Cannon . | . . . . . Launcher 1 | . . . . 1 Special Weapon . | . . . . . Impact Weapon . | . . . . . Slashing Weapon . | . . . . . Piercing Weapon . | . . . . . Special Melee Weapon . | . . . . . Unidentified Prototypes 2 | . . 1 . 1 Corrupted Parts 2 | . . . . 2 System Corruption 7 | . . . . 7 Parts Lost 8 | . . 2 1 5 Power 1 | . . 1 . . Propulsion 2 | . . . . 2 Utility 3 | . . 1 1 1 Weapon 2 | . . . . 2 Highest Loss Streak 3 | . . 2 1 3 To Critical Strikes . | . . . . . Average Backups 9 | 2 7 7 10 11 Power 1 | . 1 . 1 1 Propulsion 1 | 1 4 3 . . Utility 2 | . . . 4 5 Weapon 4 | . 2 3 4 5 Tool/Special . | . . . . . Unused Backups 18 | . 3 3 3 9 Power 2 | . . . 2 . Propulsion 6 | . 3 3 . . Utility 7 | . . . . 7 Weapon 3 | . . . 1 2 Tool/Special . | . . . . . Average Slot Usage (%) 95 | . 96 98 99 90 Engine 13 | . 14 13 14 14 Leg 22 | . 28 28 28 12 Wheel 1 | . . . . 4 Device 12 | . 12 13 14 11 Storage 13 | . 14 14 14 13 Energy Gun 8 | . . 5 13 10 Energy Cannon 1 | . . . . 3 Ballistic Gun 17 | . 26 22 14 14 Peak Build Rating 26 | 6 7 17 17 26 Average Rating 10 | 4 6 9 12 12 On Entrance 8 | . 6 7 17 13 Avg Prop Armor Cover (%) 10 | . . . . 10 Naked Turns . | . . . . . Heaviest Build 35 | 13 15 16 32 35 Greatest Support 32 | 20 20 20 20 32 Greatest Overweight (x) 3 | 2 1 . 1 3 Average Overweight (x) . | . . . . 2 Largest Inventory Capacity 15 | 8 8 8 15 15 Average Capacity 11 | 7 8 8 14 14 Most Carried 15 | 6 8 8 15 15 Average Carried 11 | 3 7 7 13 14 Final Capacity 15 | 8 8 8 15 5 Final Carried 15 | 6 8 8 15 5 Class Distribution -------------------- 75% | Scavenger-Mutant 24% | Mutant Dominant Class ---------------- Mutant | -10/Materials Scavenger-Mutant | -10/Mines Scavenger-Mutant | -10/Subcaves Scavenger-Mutant | -9/Recycling Resources | -11 -10 -10 -10 -9 ----------- Run | Yrd Mat Min Sub Rec Matter Collected 754 | 246 87 184 117 120 Remotely . | . . . . . Salvage Created 1037 | . 87 273 98 579 Parts 50 | . 6 17 5 22 Haulers Intercepted . | . . . . . Recyclers Shooed 1 | . . . . 1 Parts Field Recycled . | . . . . . Retrieved Matter . | . . . . . Parts Self-Destructed 17 | . . . 17 . Prevented . | . . . . . Parts Restored . | . . . . . Kills | -11 -10 -10 -10 -9 ------- Run | Yrd Mat Min Sub Rec Combat Hostiles Destroyed 19 | . 4 10 2 3 Guns 18 | . 4 10 2 2 Cannons 1 | . . . . 1 Classes Destroyed 5 | . 2 . 1 2 Recycler 5 | . . . . 5 Swarmer 9 | . 3 6 . . Grunt 5 | . 1 4 . . Sentry 3 | . . . . 3 Subdweller 2 | . . . 2 . Best Kill Streak 3 | . 3 3 2 3 Combat Bots Only 3 | . 3 3 2 1 Max Kills in Single Turn 2 | . 1 1 1 2 Gunslinging . | . . . . . Exploded . | . . . . . Melee . | . . . . . Uniques/NPCs Destroyed . | . . . . . Combat | -11 -10 -10 -10 -9 -------- Run | Yrd Mat Min Sub Rec Hostile Shots Fired 146 | . 40 57 11 38 Missed 53 | . 17 23 1 12 Hits 93 | . 23 34 10 26 Projectile 93 | . 23 34 10 26 Critical Strikes 2 | . . . . 2 Damage Taken 1304 | . 199 370 224 511 Core 257 | . 32 80 57 88 Absorbed by Shields . | . . . . . Core Remaining (%) 100 | 100 . . . . Volleys Fired 73 | . 17 33 6 17 Largest 2 | . 2 2 2 2 Hottest 95 | . 40 85 70 95 Shots Fired 131 | . 25 65 12 29 Gun 126 | . 25 65 12 24 Cannon 4 | . . . . 4 Launcher 1 | . . . . 1 Special . | . . . . . Kinetic 104 | . 25 60 6 13 Thermal 22 | . . 5 6 11 Explosive 1 | . . . . 1 Electromagnetic 4 | . . . . 4 Robot Hit Streak 11 | . 4 11 2 9 Robot Miss Streak 5 | . 2 5 3 2 Penetration Max . | . . . . . Secondary Targets 1 | . . 1 . . Max Gunslinging Chain 1 | . . 1 . . Shots Hit Robots 78 | . 15 37 4 22 Core Hits 34 | . 6 17 2 9 Critical Kills 1 | . . . 1 . Critical Parts Destroyed . | . . . . . Critical Strikes 2 | . . 1 1 . Burn 1 | . . 1 . . Destroy 1 | . . . 1 . Melee Attacks . | . . . . . Impact . | . . . . . Slashing . | . . . . . Piercing . | . . . . . Sneak Attacks . | . . . . . Combat Hostiles . | . . . . . Follow-up Attacks . | . . . . . Damage Inflicted 1116 | . 176 418 25 497 Guns 936 | . 176 418 25 317 Cannons 93 | . . . . 93 Explosions 87 | . . . . 87 Melee . | . . . . . Ramming . | . . . . . Kinetic 758 | . 176 356 25 201 Thermal 239 | . . 62 . 177 Explosive 26 | . . . . 26 Electromagnetic 93 | . . . . 93 Impact . | . . . . . Slashing . | . . . . . Piercing . | . . . . . Highest Corruption 7 | . . . . 7 Average Corruption 6 | . . . . 6 Corruption Purged . | . . . . . Corruption Blocked . | . . . . . Effects 8 | . . . . 8 Message Errors 1 | . . . . 1 Matter Fused 2 | . . . . 2 Heat Flow Errors 2 | . . . . 2 Energy Discharges 1 | . . . . 1 Data Loss (minor) 1 | . . . . 1 Weapon Failures 1 | . . . . 1 Overload Shots . | . . . . . Overflow Damage . | . . . . . Projectiles . | . . . . . Explosions . | . . . . . Melee . | . . . . . Knockbacks . | . . . . . Impact . | . . . . . Kinetic . | . . . . . Secondary . | . . . . . Self-Inflicted Damage 44 | . . . . 44 Shots 2 | . . . . 2 Rammed . | . . . . . Targets Rammed . | . . . . . Kicked . | . . . . . Crushed . | . . . . . Highest Temperature 178 | . . 32 . 178 Average Temperature 44 | . . 13 . 51 Received Heat Transfer 406 | . 30 117 45 214 Siege Activations . | . . . . . Martial Activations . | . . . . . Shielding Activations . | . . . . . Robots Disrupted . | . . . . . Combat Hostiles . | . . . . . Robots Corrupted . | . . . . . Combat Hostiles . | . . . . . Parts Fried . | . . . . . Impact Corruptions . | . . . . . Robots Melted . | . . . . . Combat Hostiles . | . . . . . Parts Melted 1 | . . 1 . . Heat Transferred 556 | . . 222 . 334 Parts Sabotaged . | . . . . . Parts Stolen . | . . . . . Parts Stripped . | . . . . . Power Chain Reactions 1 | . . . . 1 Alert | -11 -10 -10 -10 -9 ------- Run | Yrd Mat Min Sub Rec Maximum Alert Level . | . . . . . Low Security (%) 100 | 100 100 100 . 100 Level 1 . | . . . . . Level 2 . | . . . . . Level 3 . | . . . . . Level 4 . | . . . . . Level 5 . | . . . . . High Security . | . . . . . Max Security . | . . . . . Peak Influence 85 | . 70 85 . 21 Initial 7 | . . 7 . . Average 17 | . 33 30 . 1 Influence Increases 449 | . 100 255 . 94 Destroy 0b10 Robot/C 340 | . 80 200 . 60 Destroy 0b10 Robot/NC 25 | . . . . 25 Destroy Leader 60 | . 20 40 . . Destroy Structure 9 | . . . . 9 Lose Combat Pursuer 15 | . . 15 . . Influence Decreases 447 | . 80 275 . 92 Entered New Map 13 | . . 13 . . Time Decay 401 | . 80 242 . 79 Lost Part 33 | . . 20 . 13 Squads Dispatched 2 | . 2 . . . Investigation . | . . . . . Extermination . | . . . . . Reinforcement 2 | . 2 . . . Assault . | . . . . . Garrison . | . . . . . Intercept . | . . . . . Searches Triggered . | . . . . . Construction Impeded . | . . . . . Haulers Reinforced . | . . . . . Active Scanning Responses . | . . . . . Cargo Convoy Interrupts . | . . . . . Stealth | -11 -10 -10 -10 -9 --------- Run | Yrd Mat Min Sub Rec Distress Signals . | . . . . . Communications Jammed . | . . . . . Distress Signals . | . . . . . Times Spotted 41 | . 12 14 10 5 Peak Tracking Total 5 | . 4 3 5 3 Tactical Retreats 6 | . 3 3 . . ECM-based Alert Blocks 9 | . 6 3 . . Traps | -11 -10 -10 -10 -9 ------- Run | Yrd Mat Min Sub Rec Traps Triggered 1 | . 1 . . . Indirectly . | . . . . . Trap Hack Attempts . | . . . . . Triggered . | . . . . . Disarmed . | . . . . . Reprogrammed . | . . . . . Reused . | . . . . . Traps Extracted . | . . . . . Installed . | . . . . . Triggered . | . . . . . Machines | -11 -10 -10 -10 -9 ---------- Run | Yrd Mat Min Sub Rec Machines Disabled 1 | . . . . 1 Max in Single Turn 1 | . . . . 1 Machines Repaired . | . . . . . Machines Dismantled . | . . . . . Machines Sabotaged . | . . . . . Overloaded Fab Kills . | . . . . . Hacking | -11 -10 -10 -10 -9 --------- Run | Yrd Mat Min Sub Rec Machines Accessed 5 | . 1 . . 4 Terminals 1 | . 1 . . . Fabricators . | . . . . . Repair Stations . | . . . . . Recycling Units 2 | . . . . 2 Scanalyzers . | . . . . . Garrison Access . | . . . . . Total Hacks 34 | . 2 . . 32 Successful 29 | . 1 . . 28 Failed 5 | . 1 . . 4 Catastrophic . | . . . . . Database Lockouts . | . . . . . Manual . | . . . . . Terminals 2 | . 2 . . . Fabricators . | . . . . . Repair Stations . | . . . . . Recycling Units 6 | . . . . 6 Scanalyzers . | . . . . . Garrison Access . | . . . . . Terminal Hacks 27 | . 1 . . 26 Record 24 | . . . . 24 Recall Investigation 1 | . 1 . . . Release Object 2 | . . . . 2 Fabricator Hacks . | . . . . . Repair Station Hacks . | . . . . . Recycling Unit Hacks 2 | . . . . 2 Retrieve Components 2 | . . . . 2 Scanalyzer . | . . . . . Garrison Access Hacks . | . . . . . Unauthorized Hacks . | . . . . . Terminals . | . . . . . Fabricators . | . . . . . Repair Stations . | . . . . . Recycling Units . | . . . . . Scanalyzers . | . . . . . Garrison Access . | . . . . . Data Cores Recovered . | . . . . . Used . | . . . . . Hacking Detections 2 | . . . . 2 Full Trace Events . | . . . . . Feedback Events . | . . . . . Feedback Blocked . | . . . . . Robot Schematics Acquired . | . . . . . Robots Built . | . . . . . Authchips . | . . . . . Time . | . . . . . Total Robot Build Rating . | . . . . . Part Schematics Acquired . | . . . . . Parts Built . | . . . . . Authchips . | . . . . . Time . | . . . . . Total Part Build Rating . | . . . . . Part Studies Acquired . | . . . . . Parts Repaired . | . . . . . Time . | . . . . . Parts Recycled . | . . . . . Recycled Matter . | . . . . . Retrieved Matter . | . . . . . Retrieved Components 3 | . . . . 3 Parts Scanalyzed . | . . . . . Part Schematics Acquired . | . . . . . Parts Damaged . | . . . . . Bothacking | -11 -10 -10 -10 -9 ------------ Run | Yrd Mat Min Sub Rec Used RIF Installer . | . . . . . Robots Hacked . | . . . . . Non-combat . | . . . . . Combat . | . . . . . Robot Hacks Applied . | . . . . . Relay Couplers Released . | . . . . . Fabnet Peak Effective % . | . . . . . Robots Rewired . | . . . . . Allies Hacked . | . . . . . Hacks Repelled . | . . . . . Allies | -11 -10 -10 -10 -9 -------- Run | Yrd Mat Min Sub Rec Total Allies . | . . . . . Largest Group . | . . . . . Highest-Rated Group . | . . . . . Highest-Rated Ally . | . . . . . Total Orders . | . . . . . Ally Attacks . | . . . . . Total Damage . | . . . . . Kills . | . . . . . Allies Corrupted . | . . . . . Allies Melted . | . . . . . Intel | -11 -10 -10 -10 -9 ------- Run | Yrd Mat Min Sub Rec Active Infowar (turns) 364 | . 197 118 49 . Sensors 67 | . . 18 49 . ECM 297 | . 197 100 . . Robot Analysis Total . | . . . . . Derelict Logs Recovered 2 | . . 2 . . Drone Launches . | . . . . . Drone Recoveries . | . . . . . Exploration | -11 -10 -10 -10 -9 ------------- Run | Yrd Mat Min Sub Rec Turns Passed 2231 | 68 224 713 444 782 Spaces Moved 1152 | 46 126 464 229 287 Core 11 | 11 . . . . Treads . | . . . . . Legs 1034 | 35 126 464 229 180 Wheels 107 | . . . . 107 Hover . | . . . . . Flight . | . . . . . Fastest Speed 50 | 50 120 120 120 100 Average Speed 159 | 114 121 120 176 235 Slowest Speed 330 | 150 190 120 190 330 Overloaded Moves . | . . . . . Propulsion Burnouts . | . . . . . Robots Hopped . | . . . . . Potential Cave-ins . | . . . . . Cave-ins Triggered . | . . . . . Exploration Rate (%) 32 | 4 18 77 20 45 Regions Visited 4 Branch Regions 3 Pre-discovered Areas . | . . . . . Known Exits Taken 1 | . . 1 . . Unknown Exits Taken 3 | 1 1 . 1 . Scrap Searched . | . . . . . Spaces Dug . | . . . . . Terrain Destroyed 7 | . . . . 7 Melee . | . . . . . Projectile 2 | . . . . 2 AOE 5 | . . . . 5 Terrain Rammed . | . . . . . Walls Destroyed . | . . . . . Machines Disabled . | . . . . . Actions | -11 -10 -10 -10 -9 --------- Run | Yrd Mat Min Sub Rec Total 1430 | 59 177 567 261 366 Wait 81 | . 15 33 3 30 Move 1148 | 45 125 463 228 287 Hop . | . . . . . Pick Up 44 | 8 8 10 11 7 Fast Attach 18 | 4 2 5 . 7 Attach 11 | 2 1 1 3 4 Detach 4 | . . 1 2 1 Swap 10 | . 2 5 2 1 Drop 40 | . 7 15 6 12 Fire 73 | . 17 33 6 17 Melee . | . . . . . Ram . | . . . . . Kick . | . . . . . Crush . | . . . . . Escape Stasis . | . . . . . Rewire 1 | . . 1 . . Trap . | . . . . . Miscellaneous . | . . . . . Route ------- -11/Scrapyard -10/Materials -10/Mines (discovered 3 exits: [*Mat x2] / *Sub) -10/Subcaves (discovered 2 exits: [*Mat] / *Rec) -9/Recycling History --------- Turn | Location | Event 15 | -11/Scrapyard | Discovered new exit (range 15) 69 | -11/Scrapyard | Entered Materials 270 | -10/Materials | Discovered new exit (range 10) 293 | -10/Materials | Entered Mines 310 | -10/Mines | Build established: Mutant 486 | -10/Mines | Discovered new exit (range 13) 725 | -10/Mines | Build established: Scavenger-Mutant 728 | -10/Mines | Discovered new exit (range 8) 818 | -10/Mines | Learned 8 Materials zone layouts 819 | -10/Mines | Identified exit to Subcaves 976 | -10/Mines | Found a damaged Exp. Sensor Array with a note attached 986 | -10/Mines | Found Prototype Device 988 | -10/Mines | Identified Exp. Sensor Array 1006 | -10/Mines | Entered Subcaves 1007 | -10/Subcaves | Approached by a straggling Scientist 1123 | -10/Subcaves | Discovered new exit (range 10) 1144 | -10/Subcaves | Ambushed by swarm of Subdwellers 1152 | -10/Subcaves | Ambushed by Subdwellers from Twisted Machinery 1155 | -10/Subcaves | Core integrity fell below 50% 1231 | -10/Subcaves | A swath of the cavern ceiling suddenly collapsed 1398 | -10/Subcaves | A swath of the cavern ceiling suddenly collapsed 1443 | -10/Subcaves | Discovered new exit (range 6) 1450 | -10/Subcaves | Entered Recycling 1451 | -9/Recycling | Met a Zionite searching for Scraptown 2136 | -9/Recycling | Lost 3 parts (1n1u1w) 2184 | -9/Recycling | Scanned before Scraplab entrance 2207 | -9/Recycling | Entered Scraplab 2219 | -9/Recycling | Angered Scraplab inhabitants 2222 | -9/Recycling | Found Prototype Device 2222 | -9/Recycling | Identified Scrap Engine 2228 | -9/Recycling | Core integrity fell below 20% 2232 | -9/Recycling | Destroyed by MC-FS3(j) with Overtuned Pulse Rifle Last Messages --------------- >>Record! "SEP-X TODO" Figure out how the newest subatomizer persuasion algorithm actually works so I can provide more color on that. 02219_ System corrupted: Matter fused (-9). 02219_ Connecting with Scraplab SEP... >>Release Inventory Accessing inventory controls... Prototype released... URGENT: Link to external system right away! 02219_ Connecting with Scraplab SEP... Prototype Device integrity failing. 02221_ Dropped Lrg. Storage Unit. 02222_ Acquired Prototype Device. 02222_ Identified Scrap Engine. 02223_ Sub. Machine Gun shoots sparks and powers down. 02226_ Machine disabled. 02229_ Critical hit (Burn: +50). 02231_ Particle Gun destroyed. Map ----- +----------------------------------------------------+ | | | | | | | | | | | | | | | | | | | | | | | | | | | | | | | | | | | | | | | | | | | | | ??????????????????????#########??????????????????? | | ??????????????????????#"""""""#??#???????????????? | | ??????????????????????# "*X " ##j#???????????????? | | ????????????????####### [@!!c #???????????????? | | ???????????????## j [ &! #???????????????? | | ???????????????# #####j [ c "#???????????????? | | ???????????????## #???# ""#???????????????? | | ????????????????# #???# & & X ""#???????????????? | | ????????????????# #???#"""""""" #???????????????? | | ?????????????#####################???????????????? | | ?????????????# #???????????????????????????? | | ?????????????# #???????????????????????????? | | ?????????????# #???????????????????????????? | | ?????????????# #???????????????????????????? | | ?????????#???####+####???????????????????????????? | | ??#T###### ####!#*#??????????????????????????????? | | ?? % ############???????????????????? | | ? ##############???????? | | ? =! # ! #???????? | | ? *% #! #???????? | | ? ! # #???????? | | ? # #???????? | | ?? # ! #???????? | | ?? #* #???????? | | ??? #% ! ! #???????? | | ?#####T############# %#%%% ! #???????? | | ?# ############????# =+ !* ! #???????? | | ?# #????# # ! ! #???????? | +----------------------------------------------------+ Best States ------------- Heat Dissipation 39 Coolant Potential 50 Energy Generation 15 Energy Capacity 250 Matter Stores 300 Matter Capacity 300 Sight Range 16 Robot Scan Range 20 Terrain Scan Density 10 ECM Strength 1 Evasion (%) 55 Authchip Count 1 Item Schematics ----------------- None Robot Schematics ------------------ None Fabricated ------------ Nothing Repaired ---------- Nothing Studied --------- None Alien Tech Used ----------------- None Achievements -------------- A Problem For Future Me There's More Where That Came From You May Approach The Wall Challenges ------------ None Game ------ Seed EfficiencyBorgStabilizer Manual? 0 Play Time 00:28:52 Cumulative 14.0 hours Start 2026.08.09 @ 18:09:47 End 2026.08.09 @ 21:59:53 Sessions 3 Manual Loads 0 Difficulty Rogue Special Mode None Game No. 29 Rogue 27 Adventurer 0 Explorer 2 Win Type - Total 0 Types 0/0/0/0/0/0/0/0/0/0 Lore% 10 Gallery% 17 Achievement% 13 Wizard Run 0 Options --------- Layout 1 ASCII 1 Keyboard 0 Movement Numpad Keybinds 0 Fullscreen 1 Font 24/Smallcaps Map View 50x35 Zoom Use 0% Tactical HUD 1 Map Filters NONE Filters NONE Steam 1 RUN: 65ddc498-fa6b-4245-b9b7-db55c3e6a15e